Cogmind - Beta 13 @@@ ROGUE MODE // 2024.06.14 @ 21:47:45 Player: AbsoluteZero Result: Destroyed by G-67 Veteran with Field Laser Performance ------------- Evolutions (4) 2000 Regions Visited (11) 2200 Robots Destroyed (98) 490 Value Destroyed (3146) 3146 Prototype IDs (16) 320 Alien Tech Used (0) 0 Bonus (660) 660 TOTAL SCORE: 8816 Bonus ------- High Alert Combat Kills 47 Follower Combat Kills 478 Met Data Miner 300 Friendly Fire -165 Cogmind --------- Core Integrity 0/850 Matter 213/300 Energy 100/100 System Corruption 0% Temperature Cool (39) Movement Core (200) Ox3 Location -6/Lower Caves Parts ------- > --- POWER (1) -------- (None) > --- PROPULSION (5) --- (None) > --- UTILITY (5) ------ Medium Storage Unit Enhanced Optical Array Advanced Terrain Scan Processor Hacking Suite > --- WEAPON (4) ------- (None) > --- INVENTORY (10) --- Cooled VTOL Module Cooled VTOL Module Improved Cooling System High-capacity Matter Pod (68) Improved Medium Armor Plating Long-range Tractor Beam Improved Trap Extractor (0/6) Power Maul Peak State ------------ > --- POWER ------------ Micro Nuclear Core > --- PROPULSION ------- Makeshift Flight Unit Nuclear Pulse Array Nuclear Pulse Array > --- UTILITY ---------- Medium Storage Unit Advanced Visual Processing Unit Enhanced Optical Array Hacking Suite Recalibrator > --- WEAPON ----------- Hypervelocity Gauss Rifle Hypervelocity Gauss Rifle Power Maul > --- INVENTORY -------- Light Angular Momentum Engine Cooled VTOL Module Cooled VTOL Module Improved Cooling System High-capacity Matter Pod Improved Medium Armor Plating Long-range Tractor Beam Hypervelocity Gauss Rifle Improved Grenade Launcher [Rating: 65] Favorites ----------- Power Light Deuterium Engine Engine Light Deuterium Engine Power Core Light Nuclear Core Propulsion Gravmag System Treads Light Treads Wheel Wheel Hover Unit Gravmag System Flight Unit Makeshift Flight Unit Utility Medium Storage Unit Device Improved Heat Sink Storage Medium Storage Unit Processor Advanced Targeting Computer Hackware Hacking Suite Protection Improved Medium Armor Plating Weapon Improved Assault Rifle Energy Gun Heavy Particle Gun Ballistic Gun Improved Assault Rifle Ballistic Cannon Magnetic Acceleration Cannon Launcher Improved Grenade Launcher Impact Weapon Power Maul Slashing Weapon Katana Build | -11 -10 -10 -9 -8 -7 -7 -7 -7 -6 -6 -6 ------- Run | Yrd Mat Min Mat Mat Fac Low Low Dat Pro Fac Low Slots Evolved 8 | . . . 2 2 2 . . . . 2 . Power . | . . . . . . . . . . . . Propulsion 3 | . . . . . 2 . . . . 1 . Utility 3 | . . . . 2 . . . . . 1 . Weapon 2 | . . . 2 . . . . . . . . Parts Attached 126 | 8 5 5 16 9 18 10 10 4 10 28 3 Power 15 | 1 . 2 4 . 2 . . . 2 3 1 Engine 11 | 1 . 1 3 . 2 . . . 1 2 1 Core 4 | . . 1 1 . . . . . 1 1 . Reactor . | . . . . . . . . . . . . Propulsion 29 | 2 . 1 4 1 4 2 3 . 1 11 . Treads 8 | 2 . . 3 1 . . 2 . . . . Leg . | . . . . . . . . . . . . Wheel 3 | . . 1 1 . . . . . 1 . . Hover 6 | . . . . . 4 2 . . . . . Flight 12 | . . . . . . . 1 . . 11 . Utility 28 | 2 2 1 1 5 5 . 2 . 4 6 . Device 8 | 1 . 1 . 1 1 . . . 2 2 . Storage 3 | 1 1 . . . 1 . . . . . . Processor 5 | . . . . . 1 . . . 1 3 . Hackware 1 | . . . . . . . . . . 1 . Protection 11 | . 1 . 1 4 2 . 2 . 1 . . Artifact . | . . . . . . . . . . . . Weapon 54 | 3 3 1 7 3 7 8 5 4 3 8 2 Energy Gun 11 | 2 1 . 1 2 1 1 . 2 1 . . Energy Cannon . | . . . . . . . . . . . . Ballistic Gun 31 | 1 2 1 6 1 5 3 3 2 1 6 . Ballistic Cannon 2 | . . . . . . . . . . . 2 Launcher 6 | . . . . . . 2 2 . 1 1 . Special Weapon . | . . . . . . . . . . . . Impact Weapon 1 | . . . . . . . . . . 1 . Slashing Weapon 3 | . . . . . 1 2 . . . . . Piercing Weapon . | . . . . . . . . . . . . Special Melee Weapon . | . . . . . . . . . . . . Unidentified Prototypes 5 | . . . 1 . 2 . . . . 2 . Corrupted Parts 2 | . . . . . . . 2 . . . . System Corruption 24 | . . . . . . . 24 . . . . Parts Lost 30 | . . 3 2 . . 2 7 . 5 3 8 Power 7 | . . 1 2 . . . 1 . 1 . 2 Propulsion 11 | . . 1 . . . 2 4 . 1 . 3 Utility 4 | . . . . . . . 2 . 1 . 1 Weapon 8 | . . 1 . . . . . . 2 3 2 Highest Loss Streak 8 | . . 2 1 . . 1 7 . 4 2 8 To Critical Strikes . | . . . . . . . . . . . . Average Slot Usage (%) 87 | . 100 99 99 89 99 100 81 49 81 69 60 Engine 6 | . 14 7 9 9 7 7 3 . 1 1 1 Core 1 | . . 6 . . . . . . 3 4 3 Treads 12 | . 28 25 21 18 . . 2 15 15 3 . Hover 6 | . . . . . 30 30 13 . . . . Flight 3 | . . . . . . . 3 7 7 17 16 Device 7 | . 2 10 9 8 9 7 7 7 7 4 5 Storage 8 | . 14 14 11 9 7 7 7 7 7 6 6 Processor 2 | . . . . . 5 7 3 . 1 8 13 Protection 5 | . 11 3 1 9 6 7 7 7 6 1 . Energy Gun 7 | . 2 . 1 8 8 14 15 1 14 1 . Ballistic Gun 20 | . 25 28 41 27 21 14 14 1 9 9 . Naked Turns . | . . . . . . . . . . . . Heaviest Build 51 | 15 36 36 40 45 38 36 40 40 46 51 36 Greatest Support 45 | 40 40 40 43 45 36 36 40 40 40 40 34 Greatest Overweight (x) 10 | . . 3 3 . 1 . 10 . 4 1 4 Average Overweight (x) . | . . . . . . . . . . . . Largest Inventory Capacity 15 | 8 15 15 15 15 15 10 10 10 10 10 10 Average Capacity 11 | 7 14 15 15 15 10 10 10 10 10 10 10 Most Carried 15 | 3 9 12 15 15 15 10 10 10 10 10 10 Average Carried 10 | 1 7 9 12 14 10 9 9 10 7 9 9 Final Capacity 15 | 8 15 15 15 15 10 10 10 10 10 10 10 Final Carried 15 | 3 9 12 13 15 10 10 10 10 6 10 8 Class Distribution -------------------- 25% | Gunner 24% | Mutant 24% | Tank 13% | Scavenger-Tank 3% | Scout 3% | Commander-Gunner Dominant Class ---------------- Mutant | -10/Materials Mutant | -10/Mines Gunner | -9/Materials Tank | -8/Materials Gunner | -7/Factory Gunner | -7/Lower Caves Tank | -7/Lower Caves Commander-Mutant | -7/Data Miner Scavenger-Tank | -6/Proximity Caves Mutant | -6/Factory Scout | -6/Lower Caves Resources | -11 -10 -10 -9 -8 -7 -7 -7 -7 -6 -6 -6 ----------- Run | Yrd Mat Min Mat Mat Fac Low Low Dat Pro Fac Low Matter Collected 3433 | 251 339 261 613 323 242 349 385 . 352 318 . Remotely . | . . . . . . . . . . . . Salvage Created 3110 | 25 359 148 676 545 485 138 440 . 252 39 3 Parts 205 | 7 31 16 46 35 21 13 22 . 12 2 . Haulers Intercepted 1 | . . . . 1 . . . . . . . Recyclers Shooed . | . . . . . . . . . . . . Parts Field Recycled . | . . . . . . . . . . . . Retrieved Matter . | . . . . . . . . . . . . Parts Self-Destructed 64 | . . . . . . 10 27 . 24 . 3 Prevented . | . . . . . . . . . . . . Kills | -11 -10 -10 -9 -8 -7 -7 -7 -7 -6 -6 -6 ------- Run | Yrd Mat Min Mat Mat Fac Low Low Dat Pro Fac Low Combat Hostiles Destroyed 85 | . 11 7 14 15 8 5 15 . 7 2 1 Guns 71 | . 11 7 14 15 8 2 8 . 6 . . Cannons 1 | . . . . . . . . . . . 1 AOE 13 | . . . . . . 3 7 . 1 2 . Classes Destroyed 14 | 1 5 . 1 2 2 2 1 . . . . Worker 1 | . . . . . 1 . . . . . . Builder 3 | . 1 . 1 . 1 . . . . . . Tunneler 2 | 2 . . . . . . . . . . . Hauler 1 | . . . . 1 . . . . . . . Recycler 2 | . 1 . . . 1 . . . . . . Operator 1 | . . . . . 1 . . . . . . Watcher 3 | . 1 . 1 . 1 . . . . . . Swarmer 36 | . 8 4 1 7 . 3 5 . 5 2 1 Grunt 32 | . 3 2 7 6 7 . 5 . 2 . . Brawler 2 | . . . . . . . 2 . . . . Duelist 3 | . . . . 1 . . 2 . . . . Sentry 9 | . . . 6 1 1 . 1 . . . . Programmer 1 | . . . . . . 1 . . . . . Decomposer 1 | . . . . . . . . . 1 . . Mutant 1 | . . . . . . 1 . . . . . Best Kill Streak 10 | 2 5 3 5 4 10 3 7 . 3 2 1 Combat Bots Only 7 | . 3 3 5 4 3 3 7 . 3 2 1 Max Kills in Single Turn 3 | 1 2 1 1 1 2 3 3 . 2 2 1 Gunslinging 1 | . . . . . . . 1 . 1 . . Exploded 3 | . . . . . . 3 3 . 1 2 . Melee . | . . . . . . . . . . . . Uniques/NPCs Destroyed 1 | . . 1 . . . . . . . . . YI-UF0 (-10/Mines) Combat | -11 -10 -10 -9 -8 -7 -7 -7 -7 -6 -6 -6 -------- Run | Yrd Mat Min Mat Mat Fac Low Low Dat Pro Fac Low Hostile Shots Fired 562 | . 56 31 55 49 69 12 27 . 60 94 109 Missed 186 | . 12 5 17 12 30 3 6 . 22 53 26 Damage Taken 5943 | . 386 434 511 472 372 178 589 . 807 742 1452 Core 1227 | . 34 63 46 92 27 . 94 . 15 116 740 Absorbed by Shields . | . . . . . . . . . . . . Core Remaining (%) 82 | 100 . 61 88 83 . . . . 80 . . Volleys Fired 181 | 3 29 21 28 28 16 6 21 . 22 4 3 Largest 4 | 2 2 2 4 4 4 4 4 . 4 2 2 Hottest 194 | 70 88 46 134 132 133 193 193 . 194 66 106 Shots Fired 551 | 6 58 42 112 112 62 21 59 . 67 6 6 Gun 533 | 6 58 42 112 112 62 20 51 . 66 4 . Cannon 6 | . . . . . . . . . . . 6 Launcher 12 | . . . . . . 1 8 . 1 2 . Special . | . . . . . . . . . . . . Kinetic 411 | 3 51 42 111 84 46 10 26 . 28 4 6 Thermal 128 | 3 7 . 1 28 16 10 25 . 38 . . Explosive 12 | . . . . . . 1 8 . 1 2 . Electromagnetic . | . . . . . . . . . . . . Robot Hit Streak 23 | 2 7 4 15 12 8 23 15 . 12 14 3 Robot Miss Streak 10 | 1 10 5 2 6 3 1 4 . 4 1 1 Penetration Max . | . . . . . . . . . . . . Secondary Targets 14 | . 2 1 3 1 . . 3 . 4 . . Max Gunslinging Chain 1 | . 1 1 1 1 . . 1 . 1 . . Shots Hit Robots 325 | 4 22 20 70 61 34 16 44 . 48 2 4 Core Hits 196 | 2 16 9 24 25 31 13 39 . 35 1 1 Critical Kills 2 | . . . . . 1 . . . 1 . . Critical Parts Destroyed 2 | . . . 1 1 . . . . . . . Critical Strikes 16 | . . . 1 3 1 2 5 . 3 1 . Burn 11 | . . . . 2 . 2 5 . 2 . . Destroy 5 | . . . 1 1 1 . . . 1 1 . Melee Attacks 10 | . . . . . 2 1 . . . 7 . Impact 7 | . . . . . . . . . . 7 . Slashing 3 | . . . . . 2 1 . . . . . Piercing . | . . . . . . . . . . . . Sneak Attacks . | . . . . . . . . . . . . Combat Hostiles . | . . . . . . . . . . . . Follow-up Attacks . | . . . . . . . . . . . . Damage Inflicted 7843 | 59 355 318 1058 977 1142 505 1984 . 1141 155 149 Guns 5434 | 59 355 318 1058 971 632 331 746 . 945 19 . Cannons 149 | . . . . . . . . . . . 149 Explosions 2254 | . . . . . 510 174 1238 . 196 136 . Melee . | . . . . . . . . . . . . Ramming 6 | . . . . 6 . . . . . . . Kinetic 4081 | 21 315 318 1043 697 483 172 376 . 488 19 149 Thermal 1502 | 38 40 . 15 274 149 159 370 . 457 . . Explosive 2254 | . . . . . 510 174 1238 . 196 136 . Electromagnetic . | . . . . . . . . . . . . Impact . | . . . . . . . . . . . . Slashing . | . . . . . . . . . . . . Piercing . | . . . . . . . . . . . . Highest Corruption 25 | . . . 1 . . 1 25 25 25 . . Average Corruption 10 | . . . 1 . . 1 4 25 25 . . Corruption Purged . | . . . . . . . . . . . . Corruption Blocked . | . . . . . . . . . . . . Effects 67 | . . . 2 . . . 14 8 43 . . Message Errors 12 | . . . 1 . . . 3 1 7 . . Matter Fused 14 | . . . 1 . . . 3 2 8 . . Heat Flow Errors 9 | . . . . . . . 1 1 7 . . Energy Discharges 8 | . . . . . . . 2 . 6 . . Parts Rejected 1 | . . . . . . . . . 1 . . Parts Fused 1 | . . . . . . . . . 1 . . Data Loss (minor) 14 | . . . . . . . 5 3 6 . . Data Loss (major) 4 | . . . . . . . . 1 3 . . Misfires 1 | . . . . . . . . . 1 . . Alerts 1 | . . . . . . . . . 1 . . Weapon Failures 2 | . . . . . . . . . 2 . . Overload Shots . | . . . . . . . . . . . . Overflow Damage 187 | . . . . . 121 . 1 . . 54 11 Projectiles 11 | . . . . . . . . . . . 11 Explosions 176 | . . . . . 121 . 1 . . 54 . Melee . | . . . . . . . . . . . . Knockbacks 3 | . . . . . . . . . . . 3 Impact . | . . . . . . . . . . . . Kinetic 3 | . . . . . . . . . . . 3 Secondary . | . . . . . . . . . . . . Self-Inflicted Damage 222 | . . . . . 61 . 95 . . 66 . Shots 8 | . . . . . 2 . 4 . . 2 . Rammed 1 | . . . . 1 . . . . . . . Targets Rammed 1 | . . . . 1 . . . . . . . Kicked . | . . . . . . . . . . . . Crushed . | . . . . . . . . . . . . Highest Temperature 349 | 18 349 69 129 135 152 213 250 157 222 6 89 Average Temperature 60 | 9 84 21 40 35 69 106 90 95 67 6 39 Received Heat Transfer 1143 | . 72 45 117 117 108 . 108 . 102 84 390 Effects 3 | . 2 . . . . 1 . . . . . Shutdowns 1 | . 1 . . . . . . . . . . Energy Bleed 1 | . . . . . . 1 . . . . . Matter Decay 1 | . 1 . . . . . . . . . . Siege Activations . | . . . . . . . . . . . . Robots Corrupted . | . . . . . . . . . . . . Combat Hostiles . | . . . . . . . . . . . . Parts Fried . | . . . . . . . . . . . . Impact Corruptions . | . . . . . . . . . . . . Robots Melted . | . . . . . . . . . . . . Combat Hostiles . | . . . . . . . . . . . . Parts Melted 3 | . . . . 1 . . 1 . 1 . . Heat Transferred 4199 | 111 111 . 37 740 296 483 1292 . 1129 . . Parts Sabotaged . | . . . . . . . . . . . . Parts Stolen . | . . . . . . . . . . . . Parts Stripped . | . . . . . . . . . . . . Power Chain Reactions . | . . . . . . . . . . . . Alert | -11 -10 -10 -9 -8 -7 -7 -7 -7 -6 -6 -6 ------- Run | Yrd Mat Min Mat Mat Fac Low Low Dat Pro Fac Low Peak Influence 496 | 10 240 273 333 289 482 . . . . 496 . Initial 142 | . 6 73 4 13 120 . . . . 142 . Average 149 | 2 117 159 99 166 157 . . . . 224 . Maximum Alert Level 2 | . 1 1 1 1 2 . . . . 2 . Low Security (%) 71 | 100 86 60 88 61 82 . . . . 46 . Level 1 27 | . 13 39 11 38 9 . . . . 51 . Level 2 1 | . . . . . 7 . . . . 2 . Level 3 . | . . . . . . . . . . . . Level 4 . | . . . . . . . . . . . . Level 5 . | . . . . . . . . . . . . High Security . | . . . . . . . . . . . . Max Security . | . . . . . . . . . . . . Squads Dispatched 14 | . 2 . 3 2 4 . 1 . . 2 . Investigation 3 | . . . 2 . 1 . . . . . . Extermination 1 | . . . . . . . . . . 1 . Reinforcement 7 | . 2 . 1 2 1 . . . . 1 . Assault 1 | . . . . . . . 1 . . . . Garrison 2 | . . . . . 2 . . . . . . Intercept . | . . . . . . . . . . . . Searches Triggered 1 | . . . . . . . . . . 1 . Construction Impeded . | . . . . . . . . . . . . Haulers Reinforced . | . . . . . . . . . . . . Active Scanning Responses . | . . . . . . . . . . . . Cargo Convoy Interrupts . | . . . . . . . . . . . . Stealth | -11 -10 -10 -9 -8 -7 -7 -7 -7 -6 -6 -6 --------- Run | Yrd Mat Min Mat Mat Fac Low Low Dat Pro Fac Low Distress Signals 9 | . 2 . 4 1 . . . . . 2 . Communications Jammed . | . . . . . . . . . . . . Distress Signals . | . . . . . . . . . . . . Times Spotted 164 | . 21 9 22 22 12 2 21 . 15 32 8 Peak Tracking Total 8 | . 4 4 4 5 3 1 8 . 4 8 8 Tactical Retreats 18 | . 1 4 1 . . . 2 . . 10 . Traps | -11 -10 -10 -9 -8 -7 -7 -7 -7 -6 -6 -6 ------- Run | Yrd Mat Min Mat Mat Fac Low Low Dat Pro Fac Low Traps Triggered 2 | . . . 2 . . . . . . . . Indirectly . | . . . . . . . . . . . . Trap Hack Attempts . | . . . . . . . . . . . . Triggered . | . . . . . . . . . . . . Disarmed . | . . . . . . . . . . . . Reprogrammed . | . . . . . . . . . . . . Reused . | . . . . . . . . . . . . Traps Extracted . | . . . . . . . . . . . . Installed . | . . . . . . . . . . . . Triggered . | . . . . . . . . . . . . Machines | -11 -10 -10 -9 -8 -7 -7 -7 -7 -6 -6 -6 ---------- Run | Yrd Mat Min Mat Mat Fac Low Low Dat Pro Fac Low Machines Disabled 24 | . . . 2 . 19 1 . . . 2 . Max in Single Turn 5 | . . . 1 . 5 1 . . . 1 . Garrison Access 4 | . . . . . 1 . . . . 3 . Machines Repaired . | . . . . . . . . . . . . Machines Dismantled . | . . . . . . . . . . . . Machines Sabotaged . | . . . . . . . . . . . . Overloaded Fab Kills . | . . . . . . . . . . . . Hacking | -11 -10 -10 -9 -8 -7 -7 -7 -7 -6 -6 -6 --------- Run | Yrd Mat Min Mat Mat Fac Low Low Dat Pro Fac Low Machines Accessed 25 | . 2 2 2 1 4 . 1 4 . 9 . Terminals 13 | . 2 1 2 1 2 . . . . 5 . Fabricators 1 | . . . . . . . . . . 1 . Repair Stations . | . . . . . . . . . . . . Recycling Units 1 | . . . . . 1 . . . . . . Scanalyzers . | . . . . . . . . . . . . Garrison Access 4 | . . . . . 1 . . . . 3 . Total Hacks 76 | . 4 4 8 2 8 . 1 31 . 18 . Successful 51 | . 2 1 3 . 4 . 1 31 . 9 . Failed 25 | . 2 3 5 2 4 . . . . 9 . Catastrophic 2 | . . . . 1 1 . . . . . . Database Lockouts . | . . . . . . . . . . . . Manual 19 | . . 3 5 . 2 . . . . 9 . Terminals 34 | . 4 3 8 2 5 . . . . 12 . Fabricators 2 | . . . . . . . . . . 2 . Repair Stations . | . . . . . . . . . . . . Recycling Units 2 | . . . . . 2 . . . . . . Scanalyzers . | . . . . . . . . . . . . Garrison Access 5 | . . . . . 1 . . . . 4 . Terminal Hacks 39 | . 2 1 2 . . . 1 31 . 2 . Record 11 | . . . . . . . . 11 . . . Part Schematic 10 | . . . . . . . . 10 . . . Robot Schematic 7 | . . . . . . . . 7 . . . Prototype ID Bank 3 | . . . . . . . . 3 . . . Open Door 2 | . . 1 . . . . 1 . . . . Branch Access Points 2 | . 1 . 1 . . . . . . . . Alert Level 1 | . . . . . . . . . . 1 . Unreport Threat 1 | . . . 1 . . . . . . . . Recall Extermination 1 | . . . . . . . . . . 1 . Recall Reinforcements 1 | . 1 . . . . . . . . . . Fabricator Hacks 1 | . . . . . . . . . . 1 . Load Schematic 1 | . . . . . . . . . . 1 . Repair Station Hacks . | . . . . . . . . . . . . Recycling Unit Hacks 2 | . . . . . 2 . . . . . . Report Inventory 1 | . . . . . 1 . . . . . . Retrieve Components 1 | . . . . . 1 . . . . . . Scanalyzer . | . . . . . . . . . . . . Garrison Access Hacks 4 | . . . . . 1 . . . . 3 . Seal Access 4 | . . . . . 1 . . . . 3 . Unauthorized Hacks 5 | . . . 1 . 1 . . . . 3 . Terminals 5 | . . . 1 . 1 . . . . 3 . Track 1 | . . . . . . . . . . 1 . Botnet 4 | . . . 1 . 1 . . . . 2 . Fabricators . | . . . . . . . . . . . . Repair Stations . | . . . . . . . . . . . . Recycling Units . | . . . . . . . . . . . . Scanalyzers . | . . . . . . . . . . . . Garrison Access . | . . . . . . . . . . . . Data Cores Recovered . | . . . . . . . . . . . . Used . | . . . . . . . . . . . . Hacking Detections 15 | . 2 1 2 1 3 . . . . 6 . Full Trace Events 1 | . . . . . 1 . . . . . . Feedback Events . | . . . . . . . . . . . . Feedback Blocked . | . . . . . . . . . . . . Robot Schematics Acquired 7 | . . . . . . . . 7 . . . Robots Built . | . . . . . . . . . . . . Authchips . | . . . . . . . . . . . . Time . | . . . . . . . . . . . . Total Robot Build Rating . | . . . . . . . . . . . . Part Schematics Acquired 10 | . . . . . . . . 10 . . . Parts Built . | . . . . . . . . . . . . Authchips . | . . . . . . . . . . . . Time . | . . . . . . . . . . . . Total Part Build Rating . | . . . . . . . . . . . . Parts Repaired . | . . . . . . . . . . . . Time . | . . . . . . . . . . . . Parts Recycled . | . . . . . . . . . . . . Recycled Matter . | . . . . . . . . . . . . Retrieved Matter . | . . . . . . . . . . . . Retrieved Components 3 | . . . . . 3 . . . . . . Parts Scanalyzed . | . . . . . . . . . . . . Part Schematics Acquired . | . . . . . . . . . . . . Parts Damaged . | . . . . . . . . . . . . Bothacking | -11 -10 -10 -9 -8 -7 -7 -7 -7 -6 -6 -6 ------------ Run | Yrd Mat Min Mat Mat Fac Low Low Dat Pro Fac Low Used RIF Installer . | . . . . . . . . . . . . Robots Hacked . | . . . . . . . . . . . . Non-combat . | . . . . . . . . . . . . Combat . | . . . . . . . . . . . . Robot Hacks Applied . | . . . . . . . . . . . . Relay Couplers Released . | . . . . . . . . . . . . Fabnet Peak Effective % . | . . . . . . . . . . . . Robots Rewired 6 | . . . . . . 4 2 . . . . Allies Hacked . | . . . . . . . . . . . . Hacks Repelled . | . . . . . . . . . . . . Allies | -11 -10 -10 -9 -8 -7 -7 -7 -7 -6 -6 -6 -------- Run | Yrd Mat Min Mat Mat Fac Low Low Dat Pro Fac Low Total Allies 10 | . . 3 . . . 4 2 . 1 . . Largest Group 4 | . . 3 1 . . 4 4 4 4 1 . Highest-Rated Group 106 | . . 40 16 . . 106 103 92 96 96 . Highest-Rated Ally 96 | . . 16 16 . . 31 31 31 96 96 . Total Orders . | . . . . . . . . . . . . Ally Attacks 58 | . . 1 1 . . . 27 . 29 . . Total Damage 1441 | . . 15 17 . . . 571 . 838 . . Kills 14 | . . . . . . . 6 . 8 . . Allies Corrupted . | . . . . . . . . . . . . Allies Melted . | . . . . . . . . . . . . Intel | -11 -10 -10 -9 -8 -7 -7 -7 -7 -6 -6 -6 ------- Run | Yrd Mat Min Mat Mat Fac Low Low Dat Pro Fac Low Robot Analysis Total . | . . . . . . . . . . . . Derelict Logs Recovered 5 | . . . . . . 1 2 . 1 . 1 Drone Launches . | . . . . . . . . . . . . Drone Recoveries . | . . . . . . . . . . . . Exploration | -11 -10 -10 -9 -8 -7 -7 -7 -7 -6 -6 -6 ------------- Run | Yrd Mat Min Mat Mat Fac Low Low Dat Pro Fac Low Turns Passed 6664 | 94 616 553 827 771 497 376 1023 165 879 721 142 Spaces Moved 5855 | 47 303 322 423 417 772 521 1013 93 447 1238 259 Core 12 | 4 . . . . . . 8 . . . . Treads 1967 | 43 303 243 395 417 . . 61 93 342 70 . Legs . | . . . . . . . . . . . . Wheels 212 | . . 79 28 . . . . . 105 . . Hover 2137 | . . . . . 772 521 844 . . . . Flight 1527 | . . . . . . . 100 . . 1168 259 Fastest Speed 23 | 50 160 125 95 152 48 48 48 170 125 23 39 Average Speed 94 | 150 160 151 155 152 48 48 86 170 177 48 44 Slowest Speed 550 | 160 160 160 160 160 108 48 550 170 250 250 415 Overloaded Moves . | . . . . . . . . . . . . Propulsion Burnouts . | . . . . . . . . . . . . Robots Hopped 4 | . . . . . . . . . . 4 . Cave-ins Triggered . | . . . . . . . . . . . . Exploration Rate (%) 51 | 4 52 79 55 46 20 59 90 69 63 35 49 Regions Visited 11 Branch Regions 6 Pre-discovered Areas 1 | . . . . . . . . 1 . . . Known Exits Taken 2 | . 1 . . . . . . . . 1 . Unknown Exits Taken 9 | 1 . 1 1 1 1 1 1 1 1 . . Scrap Searched 7 | . . 2 . . . 2 2 . . . 1 Spaces Dug 9 | . . . . . 2 . . . . 7 . Terrain Destroyed 111 | . . . . . 25 8 52 . 11 15 . Melee 9 | . . . . . 2 . . . . 7 . Projectile . | . . . . . . . . . . . . AOE 102 | . . . . . 23 8 52 . 11 8 . Terrain Rammed . | . . . . . . . . . . . . Walls Destroyed . | . . . . . . . . . . . . Machines Disabled . | . . . . . . . . . . . . Actions | -11 -10 -10 -9 -8 -7 -7 -7 -7 -6 -6 -6 --------- Run | Yrd Mat Min Mat Mat Fac Low Low Dat Pro Fac Low Total 6612 | 60 387 353 522 487 858 631 1116 100 482 1335 281 Wait 209 | . 38 . 35 6 32 37 23 . 3 19 16 Move 5836 | 46 302 321 422 416 771 520 1012 92 446 1229 259 Hop 4 | . . . . . . . . . . 4 . Pick Up 58 | 3 8 5 8 13 5 6 1 . . 9 . Fast Attach 60 | 7 2 . 7 3 6 1 4 4 4 22 . Attach 26 | . . 3 4 2 3 2 1 . 5 4 2 Detach 15 | . . . 1 1 1 1 1 . 1 9 . Swap 40 | 1 3 2 5 4 9 7 5 . 1 2 1 Drop 80 | . 5 1 12 13 13 5 1 4 . 26 . Fire 181 | 3 29 21 28 28 16 6 21 . 22 4 3 Melee 10 | . . . . . 2 1 . . . 7 . Ram . | . . . . . . . . . . . . Kick . | . . . . . . . . . . . . Crush 1 | . . . . 1 . . . . . . . Escape Stasis . | . . . . . . . . . . . . Rewire 92 | . . . . . . 45 47 . . . . Trap . | . . . . . . . . . . . . Miscellaneous . | . . . . . . . . . . . . Route ------- -11/Scrapyard -10/Materials -10/Mines -9/Materials (discovered 3 exits: *Mat x2 / Min) -8/Materials -7/Factory -7/Lower Caves -7/Lower Caves (discovered 2 exits: *Fac / *Dat) -7/Data Miner -6/Proximity Caves -6/Factory (discovered 4 exits: *Fac x2 / *Low / Ext) -6/Lower Caves (discovered 1 exit: Low) History --------- Turn | Location | Event 3 | -11/Scrapyard | Discovered new exit (range 16) 95 | -11/Scrapyard | Entered Materials 300 | -10/Materials | Build established: Mutant 395 | -10/Materials | Discovered new exit (range 16) 402 | -10/Materials | Identified exit to Mines 711 | -10/Materials | Entered Mines 829 | -10/Mines | Found a hidden stash of uninstalled traps 932 | -10/Mines | A weapon hastily lodged in a ceiling crevice suddenly fell to the ground 989 | -10/Mines | Assisted by bots powering up and referring to "LRC-V3" 1117 | -10/Mines | Found the Drone Emporium 1125 | -10/Mines | Found Prototype Device 1159 | -10/Mines | Destroyed YI-UF0 1238 | -10/Mines | Discovered new exit (range 9) 1264 | -10/Mines | Entered Materials 1264 | -9/Materials | Accompanied by 1 ally 1264 | -9/Materials | Evolved 2 slots: Weapon x2 1280 | -9/Materials | Identified exit to Mines 1575 | -9/Materials | Build established: Gunner 1629 | -9/Materials | Discovered new exit (range 13) 2052 | -9/Materials | Discovered new exit (range 9) 2091 | -9/Materials | Entered another Materials area 2091 | -8/Materials | Evolved 2 slots: Utility x2 2283 | -8/Materials | Build established: Tank 2845 | -8/Materials | Discovered new exit (range 8) 2862 | -8/Materials | Entered Factory 2862 | -7/Factory | Evolved 2 slots: Propulsion x2 3220 | -7/Factory | Discovered new exit (range 9) 3272 | -7/Factory | Build established: Gunner 3359 | -7/Factory | Entered Lower Caves 3563 | -7/Lower Caves | Attacked by a delusional Derelict stockpiling Unaware 3679 | -7/Lower Caves | Learned Factory emergency access door positions 3716 | -7/Lower Caves | Discovered new exit (range 9) 3735 | -7/Lower Caves | Entered another Lower Caves area 3735 | -7/Lower Caves | Accompanied by 4 allies 3748 | -7/Lower Caves | Learned location of 1 exit from Factory 3759 | -7/Lower Caves | Discovered new exit (range 8) 4146 | -7/Lower Caves | Encountered a Warlord checkpoint 4195 | -7/Lower Caves | Discovered new exit (range 11) 4200 | -7/Lower Caves | Attracted the attention of an 0b10 outpost 4247 | -7/Lower Caves | Destroyed 7 combat bots 4255 | -7/Lower Caves | Lost 7 parts (1p4n2u) 4503 | -7/Lower Caves | Build established: Tank 4601 | -7/Lower Caves | System corruption reached 10% 4758 | -7/Lower Caves | Entered Data Miner 4758 | -7/Data Miner | Accompanied by 4 allies 4761 | -7/Data Miner | Discovered new exit (range 6) 4793 | -7/Data Miner | Met Data Miner 4825 | -7/Data Miner | Learned location of Section 7 (-2) 4825 | -7/Data Miner | Acquired the access code to Warlord's prototype stash 4854 | -7/Data Miner | Received God Mode back door access code from Data Miner 4923 | -7/Data Miner | Entered Proximity Caves 4923 | -6/Proximity Caves | Accompanied by 4 allies 4952 | -6/Proximity Caves | Spotted B-75 Beast 5071 | -6/Proximity Caves | Lost 4 allies 5100 | -6/Proximity Caves | Escorted by Enhanced Grunt 5107 | -6/Proximity Caves | Allies destroyed B-75 Beast 5129 | -6/Proximity Caves | Lost 4 parts (1n1u2w) 5456 | -6/Proximity Caves | Build established: Scavenger-Tank 5740 | -6/Proximity Caves | Attracted the attention of an 0b10 checkpoint 5757 | -6/Proximity Caves | Discovered new exit (range 9) 5802 | -6/Proximity Caves | Entered Factory 5802 | -6/Factory | Accompanied by 1 ally 5802 | -6/Factory | Evolved 2 slots: Propulsion x1, Utility x1 5803 | -6/Factory | Identified exit to Lower Caves 5803 | -6/Factory | Identified exit to Extension 5804 | -6/Factory | Identified exit to Factory 6223 | -6/Factory | Spotted B-75 Beast 6372 | -6/Factory | Discovered exit to Factory (range 7) 6502 | -6/Factory | Search patrols dispatched 6523 | -6/Factory | Entered Lower Caves 6548 | -6/Lower Caves | Identified exit to Lower Caves 6654 | -6/Lower Caves | Core integrity fell below 50% 6660 | -6/Lower Caves | Core integrity fell below 20% 6665 | -6/Lower Caves | Destroyed by G-67 Veteran with Field Laser Last Messages --------------- 06629_ Destroyed VTOL Module. 06629_ S-27 Virus knocked back. 06629_ S-27 Virus destroyed. 06630_ Nuclear Pulse Array destroyed. 06632_ Destroyed VTOL Module. 06632_ S-27 Virus knocked back. 06636_ Nuclear Pulse Array destroyed. 06645_ Lgt. Angular Momentum Engine destroyed. 06647_ Magnetic Acceleration Cannon destroyed. 06647_ Adv. Terrain Scanner destroyed. 06649_ Mak. Flight Unit destroyed. 06649_ Magnetic Acceleration Cannon destroyed. 06651_ S-27 Virus destroyed. 06651_ Critical hit (Burn: +37). 06653_ S-27 Virus destroyed. 06657_ VTOL Module fries itself beyond repair. 06659_ Lgt. Nuclear Core fries itself beyond repair. 06662_ VTOL Module fries itself beyond repair. 06663_ S-27 Virus destroyed. Map ----- +----------------------------------------------------+ | ?????????????????????????????????????????????????? | | ?????????????????????????????????????????????????? | | ?????????????????????????????????????????????????? | | ?????????????????????????????????????????????????? | | ????????????????????##???????????????????????????? | | ????????????????#?##?????????????????????????????? | | ??????????????????#?##?##?#??##??#???????????????? | | ????????????????##?????#??#?##?###??#????????????? | | ????????????????#???#??##? ##??#???????????????? | | ???????#?????###?#??#??## ??###?#??????????? | | ????????????##??##??#?#?# ? ??###???????????? | | ????????????###???##??### ? ? ????####????????? | | ??????????#?##??##?###### ? ######??????????? | | ????????###?#?###??###?#? ???##?#?#?#????????? | | ??#???#????#?? ? ?? ? ? ? ??##?##????#???????? | | ?? ????###??? ??##?#??? #?#??#?#?? #?????????? | | ????? ####? ???#??#?##? ###??#? ??? ? #?? ???? | | ??>???? ?? ???#??#### #?#? ???????? ????????? | | ??????##?# ????#??#?#? #??# ? ?#?? ? ???????#? | | ???????#?# ########## # ? ??? #?## #?? ? ?#?? | | ?#???##?# ? ### #?? ? #???## ??? ??? | | ?????#?##?? ? ? ##???? #?### ??##????? | | ##?????#?# ?? ??### # ###? #?###???#?#????# | | # ? #??## ?###?#### #### # #?#???? #??###???? | | ??##### ??#???#?### % ##?#?#???? ?#???? | | ?????? #??###### @ ####?#??###? ??#??# | | ? ??? ? #??#?###gg%%%g ###??###?## #??### | | # ?? ? ? ###??## % g #######??##?##### | | # ##??## ??# ##### # # #??##?#??##?#### | | ####?#??# ### ## ###???????### | | ##?##### ##?##??###??# # | | ?? ###??## ## # ############### # | | ?#?? ####### ### # # | | #?#?#? ##????# ##### # # ## | | ?????#?# ####### ##?## #### #######+ ### | | #???#??# ##### #### #""""# "# | | #?#????# ##########?## ### #" " # "# | | #????#?# ##?###?##?### # T "# [## | | ???#?#?# ##?##?##??#?###### # """# "# # | | ????#??# ################## # "# # | | ???????# ! ! # """ # + # | | ?#?##?## ]% # """ + + # | | #??#???#################### # """ + # | | ?#??????##????###?#####?### """ # | | ?#???#???????#????#???##?## # | | ??#??#???#??##?#######?##?### # """# " # | | ?##?##?????#?#??####??##???## #"" #### " # | | ?#??##??#?#?#???#??######???# # ] # [ ""# # | | ???#??????#?####??##????##??# # # "# # | | ??????##?????#??????#???#?### #######++####### # | +----------------------------------------------------+ Best States ------------- Heat Dissipation 64 Energy Generation 18 Energy Capacity 310 Matter Stores 300 Matter Capacity 300 Sight Range 22 Terrain Scan Range 20 Terrain Scan Density 210 Armor Coverage 600 Evasion (%) 64 Targeting Accuracy 8 Core Analysis 6 Recoil Reduction 2 Offensive Hacking 10 Item Schematics ----------------- Combat Drone Bay | -7/Data Miner | Free Lgt. Regenerative Plating | -7/Data Miner | Free Cld. Aerolev Unit | -7/Data Miner | Free Gravity Neutralizer | -7/Data Miner | Free Com. Ion Cannon | -7/Data Miner | Free Linear Gravjet | -7/Data Miner | Free Imp. Recalibrator | -7/Data Miner | Free Mass Driver | -7/Data Miner | Free Imp. Target Analyzer | -7/Data Miner | Free Adv. Coolant Injector | -7/Data Miner | Free Robot Schematics ------------------ S-27 Virus | -7/Data Miner | Free L-41 Fighter | -7/Data Miner | Free H-55 Commando | -7/Data Miner | Free A-15 Conveyor | -7/Data Miner | Free M-22 Extractor | -7/Data Miner | Free H-66 Slayer | -7/Data Miner | Free B-60 Warrior | -7/Data Miner | Free Fabricated ------------ Nothing Alien Tech Used ----------------- None Achievements -------------- None Challenges ------------ None Game ------ Seed SwordSubdwellerBoomstick Manual? 0 Play Time 01:21:12 Cumulative 105.0 hours Start 2024.06.14 @ 19:01:39 End 2024.06.14 @ 21:47:45 Sessions 1 Manual Loads 0 Difficulty Rogue Special Mode None Game No. 118 Rogue 118 Adventurer 0 Explorer 0 Win Type - Total 0 Types 0/0/0/0/0/0/0/0/0 Lore% 47 Gallery% 47 Achievement% 38 Wizard Run 0 Options --------- Layout 1 ASCII 0 Keyboard 0 Movement Numpad Keybinds 0 Fullscreen 1 Font 24/Smallcaps Map View 50x35 Zoom Use 0% Tactical HUD 1 Map Filters NONE Filters NONE Steam 1 RUN: eca7098e-a656-47df-956a-6b9c73ed7ae7